bitfinex/quotes_BTCUSD_20250131
["timestamp","ask_amount","ask_price","bid_price","bid_amount"]
[1738347628684,0.49729092,104390.0,104380.0,0.00025683]
[1738347629649,0.48829092,104390.0,104380.0,0.00025683]
[1738347630382,0.59349092,104390.0,104380.0,0.00025683]
[1738347630623,0.77867591,104390.0,104380.0,0.00025683]
[1738347630822,0.59249092,104390.0,104380.0,0.00025683]
[1738347631041,0.51729092,104390.0,104380.0,0.00025683]
[1738347631267,0.39993416,104390.0,104380.0,0.00025683]
[1738347631478,0.41993416,104390.0,104380.0,0.00025683]
[1738347631680,0.41093416,104390.0,104380.0,0.00326234]
[1738347631888,0.41993416,104390.0,104380.0,0.00025683]
[1738347632098,0.51729092,104390.0,104380.0,0.00025683]
[1738347632314,0.41993416,104390.0,104380.0,0.00326234]
[1738347632428,0.41993416,104390.0,104380.0,0.00025683]
[1738347632659,0.41093416,104390.0,104380.0,0.00326234]
[1738347632863,0.41093416,104390.0,104380.0,0.00025683]
[1738347633079,0.143719,104370.0,104360.0,0.0003676]
[1738347633312,1.6847195,104370.0,104360.0,0.0003676]
[1738347633525,1.72759058,104370.0,104360.0,0.0003676]
[1738347633728,1.45179841,104370.0,104360.0,0.0003676]
[1738347633938,1.45979841,104370.0,104360.0,0.0003676]
[1738347634141,1.44979841,104370.0,104360.0,0.00055121]
[1738347634350,1.6449834,104370.0,104360.0,0.00055121]
[1738347634594,1.6539834,104370.0,104360.0,0.00055121]
[1738347634806,1.75134016,104370.0,104360.0,0.00055121]
[1738347635028,1.56615517,104370.0,104360.0,0.00055121]
[1738347635235,1.36279841,104370.0,104360.0,0.00055121]
[1738347635447,1.38279841,104370.0,104360.0,0.00055121]
[1738347635652,1.37479841,104370.0,104360.0,0.00055121]
[1738347636505,1.20479841,104370.0,104360.0,0.00055121]
[1738347636727,0.10624316,104370.0,104360.0,0.16728421]
[1738347637139,0.24996216,104370.0,104360.0,0.00055121]
[1738347637361,0.45514715,104370.0,104360.0,0.00055121]
[1738347637568,0.60514715,104370.0,104360.0,0.00055121]
[1738347637774,0.61514715,104370.0,104360.0,0.00055121]
[1738347637983,0.63204715,104370.0,104360.0,0.0003676]
[1738347638185,0.74640391,104370.0,104360.0,0.0003676]
[1738347638428,0.73740391,104370.0,104360.0,0.0003676]
[1738347638639,0.74634477,104370.0,104360.0,0.0003676]
[1738347638846,0.75534477,104370.0,104360.0,0.00055121]
[1738347639264,0.75534477,104370.0,104360.0,0.0003676]
[1738347639478,0.96352976,104370.0,104360.0,6e-07]
[1738347639894,0.75534477,104370.0,104360.0,6e-07]
[1738347640097,0.94052976,104370.0,104360.0,6e-07]
[1738347640513,0.75634477,104370.0,104360.0,6e-07]
[1738347640927,0.66798801,104370.0,104360.0,6e-07]
[1738347641143,0.64904715,104370.0,104360.0,6e-07]
[1738347641348,0.60514715,104370.0,104360.0,6e-07]
[1738347641565,0.61314715,104370.0,104360.0,6e-07]
[1738347641772,0.45514715,104370.0,104360.0,6e-07]
[1738347641978,0.53250391,104370.0,104360.0,6e-07]
[1738347642290,0.53250391,104370.0,104360.0,0.00018421]
[1738347642495,0.43514715,104370.0,104360.0,6e-07]
[1738347642662,0.24996216,104370.0,104360.0,0.00018421]
[1738347642871,0.43514715,104370.0,104360.0,0.00018421]
[1738347643065,0.34731892,104370.0,104360.0,0.00018421]
[1738347643269,0.34731892,104370.0,104360.0,0.00044041]
[1738347643502,0.24996216,104370.0,104360.0,0.14417341]
[1738347643836,0.24996216,104370.0,104360.0,0.00044041]
[1738347644488,0.10624316,104370.0,104360.0,0.14417341]
[1738347645661,0.10624316,104370.0,104360.0,0.16813156]
[1738347645867,0.09724316,104370.0,104360.0,0.16717341]
[1738347646084,0.24096216,104370.0,104360.0,0.00044041]
[1738347646288,0.24996216,104370.0,104360.0,0.00044041]
[1738347646489,0.24096216,104370.0,104360.0,0.00044041]
[1738347647107,0.57614715,104370.0,104360.0,0.00287221]
[1738347647310,1.62834016,104370.0,104360.0,0.00287221]
[1738347647516,0.48831892,104370.0,104360.0,0.00287221]
[1738347647726,0.39096216,104370.0,104360.0,0.00287221]
[1738347648351,0.09724316,104370.0,104360.0,0.14660521]
[1738347648531,0.09724316,104370.0,104360.0,0.17056338]
[1738347648764,0.09724316,104370.0,104360.0,0.39156197]
[1738347648943,0.09724316,104370.0,104360.0,0.19520521]
[1738347649184,0.24096216,104370.0,104360.0,0.00287221]
[1738347650620,0.24996216,104370.0,104360.0,0.00287221]
[1738347651043,0.24096216,104370.0,104360.0,0.00287221]
[1738347651254,0.24996216,104370.0,104360.0,0.00287221]
[1738347651825,0.43514715,104370.0,104360.0,0.00287221]
[1738347651993,0.24996216,104370.0,104360.0,0.00287221]
[1738347652195,0.24096216,104370.0,104360.0,0.00287221]
[1738347652396,0.58514715,104370.0,104360.0,0.00287221]
[1738347652681,0.68250391,104370.0,104360.0,0.00287221]
[1738347653214,0.76060391,104370.0,104360.0,0.00287221]
[1738347653623,0.77060391,104370.0,104360.0,0.00287221]
[1738347653824,0.77060391,104370.0,104350.0,0.0003]
[1738347653825,0.313733,104360.0,104350.0,0.0003]
[1738347654037,1.36581241,104360.0,104350.0,0.0003]
[1738347654291,1.39880182,104360.0,104350.0,0.00370209]
[1738347655162,1.36581241,104360.0,104350.0,0.00370209]
[1738347655736,1.5599974,104360.0,104350.0,0.00370209]
[1738347655937,1.5599974,104360.0,104350.0,0.0003]
[1738347656178,1.5599974,104360.0,104350.0,0.00039182]
[1738347656552,1.5699974,104360.0,104350.0,0.0003]
[1738347656758,1.65735416,104360.0,104350.0,0.0003]
[1738347656961,1.36269241,104360.0,104350.0,0.0003]
[1738347657162,1.36269241,104360.0,104350.0,0.00039182]
[1738347657391,1.36269241,104360.0,104350.0,0.00415059]
[1738347657598,1.34581241,104360.0,104350.0,0.00039182]
[1738347657956,1.35481241,104360.0,104350.0,0.00039182]
[1738347658170,1.44316917,104360.0,104350.0,0.00039182]
[1738347658379,1.62835416,104360.0,104350.0,0.00039182]
[1738347658594,1.65735416,104360.0,104350.0,0.00039182]
[1738347658809,1.66735416,104360.0,104350.0,0.0003]
[1738347659024,1.66735416,104360.0,104350.0,0.00039182]
[1738347659462,1.65835416,104360.0,104350.0,0.00039182]
[1738347660091,1.92013915,104360.0,104350.0,1e-06]
[1738347660312,0.14376,104340.0,104330.0,3e-08]
[1738347660528,0.143845,104280.0,104270.0,0.143857]
[1738347660754,0.24108816,104280.0,104270.0,0.14481591]
[1738347660987,0.24108816,104280.0,104270.0,0.00169417]
[1738347661197,0.09724316,104280.0,104270.0,0.33073617]
[1738347661411,0.09724316,104290.0,104270.0,0.18592025]
[1738347661628,0.09724316,104290.0,104280.0,0.18774884]
[1738347661838,0.09724316,104290.0,104280.0,0.18679]
[1738347662054,0.09724316,104290.0,104280.0,0.21043329]
[1738347662270,0.09724316,104290.0,104280.0,0.18743329]
[1738347662701,0.24807216,104290.0,104280.0,0.18743329]
[1738347662913,0.24807216,104290.0,104280.0,0.00064329]
[1738347663345,0.10424316,104290.0,104280.0,0.14448629]
[1738347663592,0.10424316,104290.0,104280.0,0.21167922]
[1738347663796,0.09724316,104290.0,104280.0,0.23467922]
[1738347664230,0.10624316,104290.0,104280.0,0.16748629]
[1738347664443,0.10624316,104290.0,104280.0,0.14448629]
[1738347664914,0.09724316,104290.0,104280.0,0.16844514]
[1738347665585,0.24107216,104290.0,104280.0,0.14448629]
[1738347665805,0.09724316,104290.0,104280.0,0.14448629]
[1738347666257,0.24107216,104290.0,104280.0,0.14448629]
[1738347666647,0.25668557,104290.0,104280.0,0.00064329]
[1738347666855,0.24107216,104290.0,104280.0,0.14448629]
[1738347667199,0.25007216,104290.0,104280.0,0.14448629]
[1738347667405,0.25007216,104290.0,104280.0,0.00064329]
[1738347667646,0.24107216,104290.0,104280.0,0.00064329]
[1738347668010,0.25007216,104290.0,104280.0,0.14448629]
[1738347668449,0.25019436,104290.0,104280.0,0.14448629]
[1738347668876,0.25019436,104290.0,104280.0,0.00064329]
[1738347669143,0.25019436,104290.0,104280.0,0.14448629]
[1738347669336,0.25019436,104290.0,104280.0,0.00064329]
[1738347669528,0.25019436,104290.0,104280.0,0.14448629]
[1738347669983,0.25019436,104290.0,104280.0,0.00064329]
[1738347670182,0.25019436,104290.0,104280.0,0.14448629]
[1738347670399,0.25019436,104290.0,104280.0,0.00064329]
[1738347671012,0.25019436,104290.0,104280.0,0.14448629]
[1738347671310,0.25019436,104290.0,104280.0,0.00064329]
[1738347672163,0.25019436,104290.0,104280.0,0.14448629]
[1738347672334,0.25019436,104290.0,104280.0,0.00064329]
[1738347672619,0.25019436,104290.0,104280.0,0.14448629]
[1738347673048,0.25019436,104290.0,104280.0,0.00064329]
[1738347673256,0.25019436,104290.0,104280.0,0.14448629]
[1738347674101,0.10636536,104290.0,104280.0,0.14448629]
[1738347675370,0.25019436,104290.0,104280.0,0.14448629]
[1738347675803,0.43537935,104290.0,104280.0,0.00064329]
[1738347676029,0.25019436,104290.0,104280.0,0.00064329]
[1738347676776,0.24119436,104290.0,104280.0,0.00064329]
[1738347676970,0.25019436,104290.0,104280.0,0.00064329]
[1738347677318,0.63167935,104290.0,104280.0,0.00064329]
[1738347677534,0.74826434,104290.0,104280.0,0.00064329]
[1738347677744,0.15,104280.0,104270.0,0.00025662]
[1738347677946,1.80541239,104280.0,104270.0,0.00025662]
[1738347678323,1.80541239,104280.0,104270.0,6.2e-07]
[1738347678623,1.85131239,104280.0,104270.0,6.2e-07]
[1738347678776,1.96171239,104280.0,104270.0,6.2e-07]
[1738347678960,1.8768858,104280.0,104270.0,6.2e-07]
[1738347679199,1.8792058,104280.0,104270.0,6.2e-07]
[1738347679528,1.8868858,104280.0,104270.0,6.2e-07]
[1738347680184,1.85259239,104280.0,104270.0,6.2e-07]
[1738347680388,1.86027239,104280.0,104270.0,6.2e-07]
[1738347680591,1.85127239,104280.0,104270.0,0.00073588]
[1738347680802,1.86027239,104280.0,104270.0,6.2e-07]
[1738347681006,1.95762915,104280.0,104270.0,0.00073588]
[1738347681142,1.95762915,104280.0,104270.0,6.2e-07]
[1738347681546,1.96862915,104280.0,104270.0,6.2e-07]
[1738347682784,1.96094915,104280.0,104270.0,6.2e-07]
[1738347682979,1.95762915,104280.0,104270.0,6.2e-07]
[1738347683265,1.97762915,104280.0,104270.0,6.2e-07]
[1738347683697,1.88027239,104280.0,104270.0,6.2e-07]
[1738347683941,1.20492241,104280.0,104270.0,6.2e-07]
[1738347684364,1.20492241,104280.0,104270.0,0.00073266]
[1738347684578,1.20492241,104280.0,104270.0,6.2e-07]
[1738347684792,1.20492241,104280.0,104270.0,0.00073017]
[1738347685003,1.20492241,104280.0,104270.0,6.2e-07]
[1738347685214,1.20492241,104280.0,104270.0,0.00073017]
[1738347685429,1.20492241,104280.0,104270.0,6.2e-07]
[1738347685634,1.20492241,104280.0,104270.0,0.00073017]
[1738347685843,1.20492241,104280.0,104270.0,6.2e-07]
[1738347686050,1.20492241,104280.0,104270.0,0.00073017]
[1738347686236,1.20492241,104280.0,104270.0,6.2e-07]
[1738347686432,1.20492241,104280.0,104270.0,0.00073017]
[1738347686640,1.20492241,104280.0,104270.0,6.2e-07]
[1738347686843,0.24108616,104280.0,104270.0,0.00073017]
[1738347687051,0.10624316,104280.0,104270.0,0.02300062]
[1738347687255,0.25008616,104280.0,104270.0,0.14053163]
[1738347687463,0.24108616,104280.0,104270.0,0.14053163]
[1738347687697,0.152843,104280.0,104270.0,0.14053163]
[1738347687896,0.143843,104280.0,104270.0,0.10523017]
[1738347688125,0.24108616,104280.0,104270.0,0.00073017]
[1738347688333,0.57627115,104280.0,104270.0,0.00073017]
[1738347688550,1.5311074,104280.0,104270.0,0.00073017]
[1738347688761,1.6064074,104280.0,104270.0,6.2e-07]
[1738347688969,1.72376416,104280.0,104270.0,6.2e-07]
[1738347689596,1.73276416,104280.0,104270.0,6.2e-07]
[1738347689807,1.72376416,104280.0,104270.0,6.2e-07]
[1738347690221,1.73276416,104280.0,104270.0,6.2e-07]
[1738347690434,1.43022241,104280.0,104270.0,6.2e-07]
[1738347690647,0.25908616,104280.0,104270.0,6.2e-07]
[1738347691504,0.11524316,104280.0,104270.0,6.2e-07]
[1738347691708,0.11524316,104280.0,104270.0,0.16781655]
[1738347691920,0.11524316,104280.0,104270.0,0.16685762]
[1738347692109,0.25908616,104280.0,104270.0,0.02300062]
[1738347692526,0.11524316,104280.0,104270.0,0.02300062]
[1738347692726,0.11524316,104280.0,104270.0,0.16781655]
[1738347692940,0.11524316,104280.0,104270.0,0.00095893]
[1738347693155,0.293884,104250.0,104240.0,0.0003]
[1738347693367,0.24112716,104250.0,104240.0,0.0003]
[1738347694028,0.143901,104240.0,104220.0,0.345865]
[1738347694242,0.24114416,104240.0,104220.0,0.39607281]
[1738347694467,0.09724316,104230.0,104220.0,0.191947]
[1738347694888,0.09724316,104230.0,104220.0,0.19290636]
[1738347695376,0.09724316,104230.0,104220.0,0.00101936]
[1738347695796,0.24115516,104230.0,104220.0,0.00101936]
[1738347696209,0.09724316,104230.0,104220.0,0.00101936]
[1738347697285,0.24115516,104230.0,104220.0,0.00101936]
[1738347697464,0.24115516,104230.0,104220.0,6e-05]
[1738347699985,1.19599141,104230.0,104220.0,6e-05]
[1738347701026,1.20499141,104230.0,104220.0,6e-05]
[1738347701430,1.49117919,104230.0,104220.0,6e-05]
[1738347701896,1.68617919,104230.0,104220.0,6e-05]
[1738347702114,1.76387919,104230.0,104220.0,6e-05]
[1738347702322,1.77487919,104230.0,104220.0,6e-05]
[1738347702541,1.79251919,104230.0,104220.0,6e-05]
[1738347703223,0.72912778,104210.0,104200.0,1.03182784]
[1738347703450,1.76120719,104210.0,104200.0,1.03182784]
[1738347705003,1.48401941,104210.0,104200.0,1.03182784]
[1738347705653,1.33401941,104210.0,104200.0,1.03182784]
[1738347705867,1.77020719,104210.0,104200.0,1.03182784]
[1738347706986,1.48401941,104210.0,104200.0,1.03182784]
[1738347708077,1.20501941,104210.0,104200.0,1.03182784]
[1738347708290,0.25018316,104210.0,104200.0,1.11994713]
[1738347708506,1.20501941,104210.0,104200.0,1.03182784]
[1738347708726,0.25018316,104210.0,104200.0,1.03182784]
[1738347710488,0.25018316,104210.0,104200.0,1.03734912]
[1738347710905,0.24118316,104210.0,104200.0,1.03734912]
[1738347711125,0.25018316,104210.0,104200.0,1.03734912]
[1738347711359,0.68637094,104210.0,104200.0,1.03734912]
[1738347711571,0.80787094,104210.0,104200.0,1.03734912]
[1738347712403,0.79887094,104210.0,104200.0,1.03734912]
[1738347712828,0.80787094,104210.0,104200.0,1.03734912]
[1738347714117,0.79887094,104210.0,104200.0,1.03734912]
[1738347714563,0.42959158,104210.0,104200.0,0.99413224]
[1738347714964,0.27959158,104210.0,104200.0,0.99413224]
[1738347715195,0.24118316,104210.0,104200.0,0.99413224]
[1738347716854,0.43598709,104210.0,104200.0,0.99413224]
[1738347718012,0.24118316,104210.0,104200.0,1.091489]
[1738347718222,0.25018316,104210.0,104200.0,0.99438907]
[1738347719597,0.43598709,104210.0,104200.0,0.99438907]
[1738347721367,0.58598709,104210.0,104200.0,0.99438907]
[1738347721780,0.40018316,104210.0,104200.0,0.99438907]
[1738347721995,0.58598709,104210.0,104200.0,0.99438907]
[1738347722202,0.40018316,104210.0,104200.0,0.99438907]
[1738347722449,0.58598709,104210.0,104200.0,0.99438907]
[1738347722597,0.40018316,104210.0,104200.0,0.99438907]
[1738347724380,0.58598709,104210.0,104200.0,0.99438907]
[1738347724804,0.58598709,104210.0,104200.0,1.07018907]
[1738347724805,0.10624316,104210.0,104200.0,1.07018907]
[1738347725022,0.10624316,104210.0,104200.0,1.31149883]
[1738347725226,0.00561232,104210.0,104200.0,1.52730276]
[1738347725432,0.00561232,104210.0,104200.0,1.62454592]
[1738347725671,0.42089168,104260.0,104240.0,0.143891]
[1738347725672,0.42089368,104260.0,104240.0,0.143891]
[1738347725881,0.09724316,104250.0,104240.0,0.3501441]
[1738347726299,0.08518668,104260.0,104250.0,0.143884]
[1738347726503,0.08518668,104260.0,104250.0,0.16784305]
[1738347726726,0.08518668,104260.0,104250.0,0.17784305]
[1738347726935,0.51813384,104260.0,104240.0,0.335744]
[1738347727137,0.24112716,104250.0,104240.0,0.143891]
[1738347727340,0.09724316,104250.0,104240.0,0.2045613]
[1738347727744,0.08518668,104260.0,104250.0,0.143884]
[1738347727969,0.18242984,104260.0,104250.0,0.143884]
[1738347728173,0.09418668,104260.0,104250.0,0.143884]
[1738347728589,0.009,104260.0,104250.0,0.143884]
[1738347728802,0.009,104260.0,104250.0,0.23728443]
[1738347728978,0.5575342,104280.0,104250.0,0.23728443]
[1738347729187,0.09724316,104270.0,104260.0,0.14482597]
[1738347729824,0.0300822,104280.0,104270.0,0.143857]
[1738347730042,0.12732536,104280.0,104270.0,0.00483503]
[1738347730253,0.27116836,104280.0,104270.0,0.00483503]
[1738347730690,0.12732536,104280.0,104270.0,0.14869203]
[1738347731522,0.0300822,104280.0,104270.0,0.40602916]
[1738347731726,0.0300822,104280.0,104270.0,0.49304613]
[1738347732144,0.0300822,104280.0,104270.0,0.51304613]
[1738347732556,0.31793529,104310.0,104270.0,0.49004613]
[1738347732760,0.09724316,104300.0,104290.0,0.143829]
[1738347732967,0.09724316,104300.0,104290.0,0.19762304]
[1738347733213,0.09724316,104300.0,104290.0,0.20312587]
[1738347733412,0.143808,104310.0,104300.0,0.143815]
[1738347733587,0.09724316,104310.0,104300.0,0.143815]
[1738347733817,0.09724316,104310.0,104300.0,0.22327864]
[1738347734243,0.1439074,104330.0,104310.0,0.335522]
[1738347734461,0.09724316,104320.0,104310.0,0.143793]
[1738347734646,0.43275816,104320.0,104300.0,0.40859489]
[1738347734798,0.62448916,104320.0,104300.0,0.40859489]
[1738347735008,0.62448816,104320.0,104300.0,0.40859489]
[1738347735597,0.44175916,104320.0,104310.0,0.00195858]
[1738347735798,0.62448816,104320.0,104300.0,0.40859489]
[1738347736386,0.63348816,104320.0,104300.0,0.40959489]
[1738347736545,0.143818,104300.0,104280.0,0.452156]
[1738347736761,0.143829,104290.0,104280.0,0.0456]
[1738347736975,0.24107216,104290.0,104280.0,0.143843]
[1738347737172,0.09724316,104290.0,104280.0,0.205185]
[1738347737329,0.09724316,104290.0,104280.0,0.21110733]
[1738347737530,0.24107216,104290.0,104280.0,0.06726433]
[1738347738161,0.24107216,104290.0,104280.0,0.00688111]
[1738347739061,0.24107216,104290.0,104280.0,0.00788111]
[1738347739302,0.25007216,104290.0,104280.0,0.00788111]
[1738347739968,0.25007216,104290.0,104280.0,0.15268294]
[1738347740107,0.10624316,104290.0,104280.0,0.15268294]
[1738347740283,0.25007216,104290.0,104280.0,0.22555145]
[1738347740537,0.25007216,104290.0,104280.0,0.22459262]
[1738347740793,0.25007216,104290.0,104280.0,0.15172411]
[1738347741025,0.25007216,104290.0,104280.0,0.15268292]
[1738347742189,0.25007216,104290.0,104280.0,0.36148685]
[1738347742190,0.009,104290.0,104280.0,0.36148685]
[1738347742415,0.25007216,104290.0,104280.0,0.15172411]
[1738347742859,0.10624316,104290.0,104280.0,0.15172411]
[1738347743098,0.10624316,104290.0,104280.0,0.22547903]
[1738347743323,0.009,104290.0,104280.0,0.2475202]
[1738347745159,0.009,104290.0,104280.0,0.43332413]
[1738347745365,0.009,104290.0,104280.0,0.51452413]
[1738347745766,0.009,104290.0,104280.0,0.53452413]
[1738347746270,0.009,104290.0,104280.0,0.54452413]
[1738347746690,0.0001222,104310.0,104300.0,0.323815]
[1738347746811,0.0001222,104310.0,104300.0,0.2418482]
[1738347747014,0.0001222,104310.0,104300.0,0.23897997]
[1738347747393,0.0001222,104310.0,104300.0,0.26197997]
[1738347747799,0.0001222,104310.0,104300.0,0.4577839]
[1738347748010,0.0001222,104310.0,104300.0,0.72502706]
[1738347748261,0.0001222,104310.0,104300.0,0.84952706]
[1738347748489,0.0001222,104310.0,104300.0,0.85252706]
[1738347752393,2e-07,104310.0,104300.0,1.04233099]
[1738347752797,2e-07,104310.0,104300.0,0.85652706]
[1738347753354,2e-07,104310.0,104300.0,1.04233099]
[1738347753534,2e-07,104310.0,104300.0,1.05081099]
[1738347753743,0.0001224,104330.0,104320.0,0.323788]
[1738347753879,0.0001224,104330.0,104320.0,0.96716212]
[1738347754086,0.0001224,104330.0,104320.0,0.9749209]
[1738347754292,4e-07,104330.0,104320.0,1.0080209]
[1738347754703,4e-07,104330.0,104320.0,1.03103905]
[1738347754924,0.0001221,104370.0,104360.0,0.36253693]
[1738347755131,0.0001221,104370.0,104360.0,0.46723022]
[1738347755341,0.0001221,104370.0,104360.0,0.93591383]
[1738347755963,0.0001221,104370.0,104360.0,0.90826478]
[1738347756197,0.0001221,104370.0,104360.0,0.93591383]
[1738347756907,0.0001221,104370.0,104360.0,0.90826478]
[1738347757333,0.0001221,104370.0,104360.0,0.88826478]
[1738347757545,0.0001221,104370.0,104360.0,0.90826478]
[1738347758350,0.0001221,104370.0,104360.0,0.88526478]
[1738347758751,0.0001221,104370.0,104360.0,0.90826478]
[1738347759408,0.0001221,104370.0,104360.0,0.91526478]
[1738347760096,1e-07,104370.0,104360.0,0.91526478]
[1738347760306,5e-07,104380.0,104370.0,0.346719]
[1738347760518,0.0821,104430.0,104410.0,0.143664]
[1738347760519,0.04760758,104420.0,104410.0,0.143664]
[1738347760731,0.14485074,104420.0,104410.0,0.14462157]
[1738347760943,0.14485074,104420.0,104410.0,0.15279665]
[1738347761148,0.14485074,104420.0,104410.0,0.22554492]
[1738347761356,0.14485074,104420.0,104410.0,0.08188092]
[1738347761569,0.28850074,104420.0,104410.0,0.00913265]
[1738347761998,0.48003474,104420.0,104400.0,0.143676]
[1738347762206,0.38279158,104420.0,104410.0,0.00913265]
[1738347762425,0.56133474,104420.0,104410.0,0.00913265]
[1738347762639,0.335223,104410.0,104390.0,0.335254]
[1738347762841,0.526784,104410.0,104390.0,0.3879389]
[1738347763053,0.143678,104400.0,104390.0,0.2442589]
[1738347763285,0.24092116,104400.0,104390.0,0.191574]
[1738347763548,0.43249116,104400.0,104380.0,0.526882]
[1738347763732,0.09724316,104390.0,104380.0,0.383188]
[1738347764344,0.09724316,104390.0,104380.0,0.39238806]
[1738347764577,0.09724316,104390.0,104380.0,0.48974482]
[1738347764837,0.24093416,104390.0,104380.0,0.48974482]
[1738347765021,0.24093416,104390.0,104380.0,0.29814982]
[1738347765164,0.24093416,104390.0,104380.0,0.30114982]
[1738347765610,0.24093416,104390.0,104380.0,0.10655682]
[1738347765765,0.24193416,104390.0,104380.0,0.25126182]
[1738347766169,0.24193416,104390.0,104380.0,0.25026182]
[1738347766376,0.24247444,104390.0,104380.0,0.25126182]
[1738347767464,0.24247444,104390.0,104380.0,0.10755682]
[1738347767668,0.31867444,104390.0,104380.0,0.25126182]
[1738347767836,0.17498344,104390.0,104380.0,0.25126182]
[1738347768801,0.24247444,104390.0,104380.0,0.25126182]
[1738347769398,0.24247444,104390.0,104380.0,0.10755682]
[1738347769608,0.24247444,104390.0,104380.0,0.01020006]
[1738347771064,0.09878344,104390.0,104380.0,0.01020006]
[1738347771267,0.24247444,104390.0,104380.0,0.01020006]
[1738347771470,0.29117444,104390.0,104380.0,0.01020006]
[1738347771687,0.70967837,104390.0,104380.0,0.01020006]
[1738347772728,0.70767837,104390.0,104380.0,0.00920006]
[1738347772934,0.335323,104380.0,104350.0,0.71967616]
[1738347773145,0.09724316,104370.0,104350.0,0.40832178]
[1738347773754,0.09724316,104370.0,104350.0,0.40736362]
[1738347774191,0.43258916,104370.0,104350.0,0.07196762]
[1738347774401,0.0792,104360.0,104340.0,0.527101]
[1738347774604,0.0792,104360.0,104350.0,0.143747]
[1738347774823,0.17644316,104360.0,104350.0,0.143747]
[1738347775195,0.17644316,104360.0,104350.0,0.144747]
[1738347775405,0.22554316,104360.0,104340.0,0.335418]
[1738347775607,0.22554316,104360.0,104340.0,0.1964617]
[1738347775608,0.09724316,104350.0,104340.0,0.1964617]
[1738347776573,0.09724316,104350.0,104340.0,0.20345687]
[1738347777002,0.09724316,104350.0,104340.0,0.00699517]
[1738347777305,0.24162616,104350.0,104340.0,0.00699517]
[1738347777542,0.42679409,104350.0,104340.0,0.00699517]
[1738347777850,0.70077109,104350.0,104340.0,0.004]
[1738347778058,0.51496716,104350.0,104340.0,0.00562159]
[1738347778188,0.51496716,104350.0,104330.0,0.143773]
[1738347778398,0.51496516,104350.0,104340.0,0.01102699]
[1738347778650,0.51496516,104350.0,104340.0,0.00702699]
[1738347778811,0.52396516,104350.0,104340.0,0.00802699]
[1738347779216,0.51496516,104350.0,104340.0,0.00702699]
[1738347779417,0.66496516,104350.0,104340.0,0.00702699]
[1738347780451,0.143788,104320.0,104300.0,0.61965055]
[1738347780713,0.24104516,104310.0,104300.0,0.05035662]
[1738347780927,0.24104516,104310.0,104300.0,0.19417162]
[1738347781139,0.24104516,104310.0,104300.0,0.19513028]
[1738347781481,0.24104516,104310.0,104300.0,0.05035662]
[1738347781692,0.24104516,104310.0,104300.0,0.19417162]
[1738347781893,0.24104516,104310.0,104300.0,0.05035662]
[1738347782092,0.24104516,104310.0,104300.0,0.05135662]
[1738347783117,0.24104516,104310.0,104300.0,0.19517162]
[1738347783328,0.09724316,104310.0,104300.0,0.19517162]
[1738347783992,0.0471,104320.0,104300.0,0.20087079]
[1738347784208,0.09724316,104320.0,104310.0,0.14476055]
[1738347784415,0.09724316,104320.0,104310.0,0.52229448]
[1738347784621,0.380558,104340.0,104320.0,0.335485]
[1738347784828,0.09724316,104330.0,104320.0,0.191706]
[1738347785034,0.09724316,104330.0,104320.0,0.26836987]
[1738347785447,0.09724316,104330.0,104310.0,0.335512]
[1738347785654,0.412912,104320.0,104310.0,0.143802]
[1738347785858,0.31843116,104320.0,104310.0,0.143802]
[1738347786303,0.31843116,104320.0,104300.0,0.61212749]
[1738347786512,0.31843116,104320.0,104300.0,0.27657649]
[1738347786513,0.09724316,104310.0,104300.0,0.27657649]
[1738347786928,0.09724316,104310.0,104300.0,0.46238042]
[1738347787139,0.384094,104330.0,104310.0,0.335518]
[1738347787355,0.192376,104330.0,104320.0,0.14474651]
[1738347787545,0.28961916,104330.0,104320.0,0.14474651]
[1738347787756,0.28461916,104330.0,104320.0,0.14474651]
[1738347787961,0.14084316,104330.0,104320.0,0.14474651]
[1738347788134,0.09724316,104330.0,104320.0,0.14474651]
[1738347788346,0.09724316,104330.0,104320.0,0.24210327]
[1738347788558,0.10624316,104330.0,104320.0,0.42794869]
[1738347788766,0.009,104330.0,104320.0,0.77375262]
[1738347788929,0.009,104330.0,104320.0,0.60794869]
[1738347789323,1.937395,104370.0,104350.0,0.335385]
[1738347789529,0.24097616,104360.0,104350.0,0.2251885]
[1738347789728,0.09724316,104360.0,104350.0,0.2251885]
[1738347791276,0.10624316,104360.0,104350.0,0.2261885]
[1738347791487,0.09678344,104360.0,104350.0,0.2251885]
[1738347791890,0.10578344,104360.0,104350.0,0.2261885]
[1738347792305,0.09678344,104360.0,104350.0,0.2251885]
[1738347792896,0.10578344,104360.0,104350.0,0.2261885]
[1738347793311,0.10578344,104360.0,104350.0,0.23180784]
[1738347794811,0.10578344,104360.0,104350.0,0.19826934]
[1738347795425,0.009,104360.0,104350.0,0.38407327]
[1738347795656,0.10624316,104360.0,104350.0,0.19826934]
[1738347796677,0.10624316,104360.0,104350.0,0.38407327]
[1738347796891,0.009,104360.0,104350.0,0.38407327]
[1738347797096,0.009,104360.0,104350.0,0.48143003]
[1738347797299,0.009,104360.0,104350.0,0.65143003]
[1738347798016,1e-06,104360.0,104350.0,1.01267712]
[1738347798282,1.3,104370.0,104360.0,0.173733]
[1738347798540,1.223348,104370.0,104360.0,0.84623635]
[1738347798748,1.223348,104370.0,104360.0,0.95746292]
[1738347798959,1.127533,104370.0,104360.0,0.95746292]
[1738347799785,1.127533,104370.0,104360.0,0.65141583]
[1738347799990,1.127533,104370.0,104360.0,0.80752536]
[1738347800196,1.127533,104370.0,104360.0,0.62172143]
[1738347800403,1.12707328,104370.0,104360.0,0.80752536]
[1738347800610,1.12707328,104370.0,104360.0,0.92776852]
[1738347802019,1.12707328,104370.0,104360.0,0.92772852]
[1738347802374,1.12707328,104370.0,104360.0,0.93672852]
[1738347803000,1.12707328,104370.0,104360.0,0.92672852]
[1738347803204,1.12707328,104370.0,104360.0,0.93672852]
[1738347803479,1.12672637,104370.0,104360.0,0.93672852]
[1738347804268,1.12672637,104370.0,104360.0,0.93668852]
[1738347805870,1.05007437,104370.0,104360.0,0.93668852]
[1738347806454,1.05007437,104370.0,104360.0,0.89888852]
[1738347806720,1.05007437,104370.0,104360.0,0.43384143]
[1738347807132,1.05007437,104370.0,104360.0,0.2570375]
[1738347807344,1.05007437,104370.0,104360.0,0.2480375]
[1738347807550,1.05007437,104370.0,104360.0,0.43384143]
[1738347807757,1.05007437,104370.0,104360.0,0.44284143]
[1738347807964,1.14731753,104370.0,104360.0,0.15068074]
[1738347808400,1.29057681,104370.0,104360.0,0.00694774]
[1738347808604,1.37237681,104370.0,104360.0,0.15068074]
[1738347808810,1.22865781,104370.0,104360.0,0.15068074]
[1738347809024,1.22865781,104370.0,104360.0,0.43384143]
[1738347809233,1.37237681,104370.0,104360.0,0.2480375]
[1738347809437,1.37237681,104370.0,104360.0,0.2570375]
[1738347809646,1.37237681,104370.0,104360.0,0.1133045]
[1738347809859,1.37237681,104370.0,104360.0,0.01594774]
[1738347810040,1.41797681,104370.0,104360.0,0.06604774]
[1738347810492,1.41797681,104370.0,104360.0,0.06395845]